bitfinex/quotes_ETHUSD_20250925
["timestamp","ask_amount","ask_price","bid_price","bid_amount"]
[1758784159725,0.001,4011.2,4011.1,2.49308169]
[1758784159946,0.001,4011.2,4011.1,8.97208169]
[1758784160419,0.001,4011.2,4011.1,11.35060975]
[1758784161346,1e-08,4011.7,4011.6,3.28477096]
[1758784161546,0.001,4012.1,4012.0,3.28452243]
[1758784161724,0.001,4012.1,4012.0,9.78744765]
[1758784161922,0.001,4012.1,4012.0,9.99102243]
[1758784162126,0.001,4012.1,4012.0,11.50981022]
[1758784162356,0.001,4012.1,4012.0,9.20031022]
[1758784162557,0.001,4012.1,4012.0,2.49252243]
[1758784162778,0.001,4012.1,4012.0,9.76052243]
[1758784162928,0.001,4012.1,4012.0,9.98902243]
[1758784163256,0.001,4012.1,4012.0,13.20052243]
[1758784163564,0.001,4012.1,4012.0,14.76983934]
[1758784163865,0.001,4012.1,4012.0,14.77283934]
[1758784164265,0.001,4012.1,4012.0,8.29383934]
[1758784164456,0.001,4012.1,4012.0,14.77183934]
[1758784164830,0.001,4012.1,4012.0,6.51302243]
[1758784165056,0.001,4012.1,4012.0,12.76052243]
[1758784165502,0.001,4012.1,4012.0,12.98902243]
[1758784165665,0.001,4012.1,4012.0,3.28452243]
[1758784165999,0.001,4012.1,4012.0,10.22644765]
[1758784166305,0.001,4012.1,4012.0,11.47343186]
[1758784166603,0.001,4012.1,4012.0,14.47343186]
[1758784166811,1e-08,4012.9,4012.8,3.28402551]
[1758784166957,1e-08,4012.9,4012.8,9.78294576]
[1758784167279,1e-08,4012.9,4012.8,3.28402551]
[1758784167481,1e-08,4012.9,4012.8,9.88202551]
[1758784167671,0.46540001,4012.9,4012.8,3.40802551]
[1758784167878,1e-08,4012.9,4012.8,9.88102551]
[1758784168074,1e-08,4012.9,4012.8,11.12083108]
[1758784168273,1e-08,4012.9,4012.8,3.40802551]
[1758784168503,0.70100001,4012.9,4012.8,3.40802551]
[1758784168656,0.70100001,4012.9,4012.8,9.08802551]
[1758784168987,0.70100001,4012.9,4012.8,2.61602551]
[1758784169179,0.70100001,4012.9,4012.8,9.08902551]
[1758784169577,1e-08,4012.9,4012.8,7.01002551]
[1758784170097,1e-08,4012.9,4012.8,9.08702551]
[1758784170280,1e-08,4012.9,4012.8,2.61602551]
[1758784170483,0.70200001,4012.9,4012.8,9.08702551]
[1758784170667,0.46640001,4012.9,4012.8,9.08702551]
[1758784170875,0.00100001,4012.9,4012.8,9.08602551]
[1758784171178,0.70200001,4012.9,4012.8,2.61602551]
[1758784171488,0.70200001,4012.9,4012.8,9.08702551]
[1758784171693,0.00100001,4012.9,4012.8,9.08702551]
[1758784171870,0.00100001,4012.9,4012.8,11.26543899]
[1758784172457,0.00100001,4012.9,4012.8,11.26343899]
[1758784172656,0.2356,4014.3,4013.5,2.49159088]
[1758784172857,0.4654,4014.4,4013.9,2.49134258]
[1758784173059,0.4654,4014.4,4013.9,7.031256]
[1758784173299,0.2356,4014.7,4013.9,7.031256]
[1758784173300,0.2356,4014.7,4013.9,7.00634258]
[1758784173480,0.2356,4014.4,4013.9,7.00534258]
[1758784173682,0.2356,4014.4,4013.9,9.08334258]
[1758784173868,0.4654,4014.6,4013.9,9.08334258]
[1758784174073,0.701,4014.6,4013.9,9.08334258]
[1758784174268,0.701,4014.6,4013.9,11.03281925]
[1758784174594,0.701,4014.6,4013.9,11.02881925]
[1758784175219,0.02,4014.9,4013.9,11.02881925]
[1758784175916,0.02,4014.9,4013.9,14.13331925]
[1758784176069,0.2356,4014.3,4013.9,12.74734258]
[1758784176400,0.4654,4014.5,4013.9,12.74734258]
[1758784176695,0.2356,4014.7,4013.9,12.74734258]
[1758784176898,0.02,4014.9,4013.9,12.74734258]
[1758784176899,0.02,4014.9,4013.9,12.97584258]
[1758784177085,0.2356,4015.3,4014.9,2.49072206]
[1758784177413,0.02,4015.9,4015.8,2.49016385]
[1758784177574,0.02,4015.9,4015.8,6.90506548]
[1758784177893,0.2556,4015.9,4015.8,6.88016385]
[1758784179016,0.02,4015.9,4015.8,3.94557918]
[1758784179210,0.02,4015.9,4015.8,6.88616385]
[1758784179421,0.02,4015.9,4015.8,8.96316385]
[1758784179597,0.721,4016.9,4016.8,2.48954391]
[1758784179974,0.721,4016.9,4015.2,0.792]
[1758784180179,0.721,4016.9,4013.5,2.49158456]
[1758784180180,0.701,4016.8,4014.3,2.49109433]
[1758784180416,3.0,4016.4,4014.4,0.49822047]
[1758784180715,0.701,4016.3,4015.7,2.49022394]
[1758784180912,0.701,4016.3,4015.1,0.792]
[1758784180913,0.4654,4016.3,4015.1,0.792]
[1758784181233,0.4429,4016.2,4015.2,8.80653351]
[1758784181376,0.671,4016.1,4014.6,2.49090818]
[1758784181580,30.23205268,4016.9,4014.3,0.792]
[1758784181581,0.671,4016.0,4014.7,6.73009082]
[1758784181781,0.671,4015.9,4015.3,2.49046011]
[1758784181975,0.671,4015.8,4015.4,4.404]
[1758784182176,0.671,4015.7,4014.9,2.49071217]
[1758784182420,0.671,4015.6,4014.5,4.404]
[1758784182629,0.671,4015.5,4014.6,2.49085013]
[1758784182930,30.21205268,4014.9,4014.1,2.51120751]
[1758784183127,30.21205268,4014.9,4014.1,0.02]
[1758784183280,0.671,4014.8,4014.1,0.02]
[1758784183880,0.671,4014.8,4014.7,2.49084614]
[1758784184309,0.671,4014.8,4014.1,0.02]
[1758784184613,3.671,4014.8,4014.1,0.02]
[1758784184979,6.16178751,4014.8,4014.1,0.02]
[1758784185314,0.671,4014.8,4014.4,2.49097244]
[1758784185517,0.671,4014.7,4014.1,2.51116825]
[1758784185814,36.69905268,4015.8,4014.1,0.02]
[1758784185815,0.671,4014.6,4014.1,0.02]
[1758784186712,30.21205268,4014.3,4014.1,0.02]
[1758784187212,0.671,4014.2,4014.1,0.02]
[1758784187390,6.16215639,4014.2,4014.1,0.02]
[1758784187624,6.95415639,4014.2,4014.1,0.02]
[1758784188224,6.95415639,4014.2,4013.1,0.02]
[1758784188225,2.4917702,4013.3,4013.1,0.02]
[1758784188451,35.70382981,4013.2,4013.1,0.02]
[1758784188633,37.29028362,4013.2,4013.1,0.02]
[1758784189040,0.671,4013.2,4013.1,0.02]
[1758784189820,33.88305268,4013.2,4013.1,0.02]
[1758784190020,40.38005268,4013.2,4013.1,0.02]
[1758784190225,42.87182981,4013.2,4013.1,0.02]
[1758784190554,43.66382981,4013.2,4013.1,0.02]
[1758784191147,2.49196341,4012.9,4012.8,0.002]
[1758784191522,2.49227395,4012.4,4012.3,0.002]
[1758784191857,42.99732663,4012.4,4012.3,0.002]
[1758784192040,43.66832663,4012.4,4012.3,0.002]
[1758784192358,41.59032663,4012.4,4012.3,0.002]
[1758784192561,3.28439818,4012.2,4012.1,0.02]
[1758784192726,36.49707222,4011.2,4010.9,0.002]
[1758784192918,43.00707222,4011.2,4010.9,0.002]
[1758784193222,37.16807222,4011.2,4010.9,0.002]
[1758784193423,43.67707222,4011.2,4010.9,0.002]
[1758784194421,37.16807222,4011.2,4010.9,0.002]
[1758784194623,43.67707222,4011.2,4010.9,0.002]
[1758784194846,37.16807222,4011.2,4010.9,0.002]
[1758784195251,43.67307222,4011.2,4010.9,0.002]
[1758784195665,37.16807222,4011.2,4010.9,0.002]
[1758784195864,43.67407222,4011.2,4010.9,0.002]
[1758784196370,33.88305268,4011.2,4010.9,0.002]
[1758784196569,42.88307222,4011.2,4010.9,0.002]
[1758784196935,36.37607222,4011.2,4010.9,0.002]
[1758784197128,33.88305268,4011.2,4010.9,0.002]
[1758784197369,30.88305268,4011.7,4010.9,0.002]
[1758784197570,2.077,4011.3,4010.9,0.002]
[1758784197864,4.428,4011.2,4010.9,0.002]
[1758784198268,30.88305268,4011.7,4010.9,0.002]
[1758784198472,4.426,4011.6,4010.9,0.002]
[1758784198781,30.44015268,4012.0,4010.9,0.002]
[1758784198782,4.426,4011.5,4011.0,2.4931366]
[1758784198972,3.0,4011.4,4010.9,2.49519309]
[1758784199138,4.426,4011.5,4010.9,2.49519309]
[1758784199338,3.0,4011.9,4010.9,0.002]
[1758784199555,3.0,4011.7,4011.0,2.49314256]
[1758784199751,3.0,4011.7,4011.1,2.51302026]
[1758784199936,4.425,4011.6,4011.1,0.02]
[1758784200141,3.0,4011.4,4011.3,2.49295739]
[1758784200343,7.423,4011.4,4011.1,0.02]
[1758784200543,0.2281,4011.3,4011.1,0.02]
[1758784200784,3.4429,4011.4,4011.1,0.02]
[1758784200785,4.423,4011.2,4011.1,0.02]
[1758784201167,3.0,4011.9,4011.1,2.75248062]
[1758784201490,30.88305268,4012.4,4011.1,2.75248062]
[1758784201491,30.88305268,4012.4,4011.4,2.49289358]
[1758784201653,2.49189491,4013.1,4011.4,2.49289358]
[1758784201654,0.4472,4012.8,4011.8,2.49258573]
[1758784201852,30.21205268,4012.5,4011.5,0.2342]
[1758784202056,0.6915,4012.4,4011.1,0.02]
[1758784202277,4.424,4012.3,4011.6,2.49276746]
[1758784202486,30.21205268,4012.0,4011.1,0.02]
[1758784202687,0.6915,4012.2,4011.1,0.02]
[1758784202688,0.07818,4011.6,4011.1,0.02]
[1758784203066,0.07738,4011.6,4011.1,0.02]
[1758784203295,0.07738,4011.6,4011.5,2.4928331]
[1758784203600,0.07738,4011.6,4011.5,2.7270331]
[1758784203963,0.07738,4011.6,4011.5,3.1771331]
[1758784204165,0.07738,4011.6,4011.5,2.4928331]
[1758784204363,0.07738,4011.6,4011.5,3.1771331]
[1758784204567,0.07738,4011.6,4011.3,2.49289901]
[1758784204568,0.07738,4011.6,4011.3,2.49290115]
[1758784204809,0.07738,4011.6,4011.1,0.02]
[1758784205115,0.07738,4011.6,4011.1,2.5130727]
[1758784205411,0.07738,4011.6,4011.1,2.51307896]
[1758784205565,0.07738,4011.6,4011.1,0.02]
[1758784205770,0.07738,4011.6,4011.5,2.4928331]
[1758784206012,0.07738,4011.6,4011.5,3.74663384]
[1758784206362,0.07738,4011.6,4011.1,0.02]
[1758784206478,0.07738,4011.6,4011.1,2.51307821]
[1758784206808,0.07738,4011.6,4011.2,2.49297606]
[1758784207115,0.07738,4011.6,4011.5,2.4928331]
[1758784207703,0.07738,4011.6,4011.5,3.20206143]
[1758784207902,1e-08,4011.6,4011.5,4.33885949]
[1758784208304,1e-08,4011.6,4011.5,8.13085949]
[1758784208474,1e-08,4011.6,4011.5,8.10593116]
[1758784208878,3.0,4013.8,4011.7,0.792]
[1758784209114,0.2643,4013.9,4012.0,3.28452243]
[1758784209416,0.02,4013.9,4012.7,2.49203775]
[1758784209627,0.02,4013.9,4013.8,2.49140465]
[1758784209828,0.02,4013.9,4012.8,5.1163]
[1758784209971,0.02,4013.9,4013.8,2.49140465]
[1758784210607,0.02,4013.9,4013.8,2.51631869]
[1758784210788,0.02,4013.9,4013.6,2.49149912]
[1758784210999,0.02,4013.9,4013.4,4.43]
[1758784211187,0.02,4013.9,4013.2,0.2342]
[1758784211396,0.02,4013.9,4013.1,4.429]
[1758784211599,0.02,4013.9,4013.6,2.49147438]
[1758784211800,0.02,4013.9,4013.4,2.49160358]
[1758784212211,0.2685,4013.9,4013.0,4.429]
[1758784212391,0.02,4013.9,4013.1,0.73041]
[1758784212596,0.02,4013.9,4013.7,2.49142089]
[1758784212902,0.02,4013.9,4013.4,2.49161571]
[1758784213238,0.02,4013.9,4013.1,0.2342]
[1758784213511,0.02,4013.9,4013.3,2.49166026]
[1758784213710,0.02,4013.9,4013.1,0.2342]
[1758784213930,0.02,4013.9,4013.0,4.429]
[1758784213931,3.0,4013.7,4013.0,2.49188492]
[1758784214114,3.0,4013.8,4013.3,2.49166149]
[1758784214419,37.63804922,4013.4,4012.8,2.49196862]
[1758784214603,37.88654922,4013.4,4012.8,2.49196862]
[1758784214807,3.0,4013.3,4012.2,0.3582]
[1758784215015,3.0,4013.1,4012.4,2.49222634]
[1758784215325,3.0,4013.1,4012.4,2.49224328]
[1758784215526,3.0,4013.1,4011.8,0.2342]
[1758784215731,0.695,4013.0,4012.1,2.49243033]
[1758784215938,3.0,4012.8,4011.4,2.49289524]
[1758784216082,3.0,4012.3,4011.4,2.49289524]
[1758784216283,0.2485,4012.2,4011.2,2.49301954]
[1758784216524,0.2485,4012.2,4011.1,0.022]
[1758784216525,3.2485,4012.1,4011.3,2.49291418]
[1758784216721,3.0,4011.9,4011.1,0.022]
[1758784216883,37.63804922,4011.5,4011.1,0.022]
[1758784217317,4.423,4011.5,4011.1,0.022]
[1758784217516,3.0,4011.4,4011.1,0.022]
[1758784217735,3.2485,4011.4,4011.1,0.022]
[1758784217944,2.077,4011.9,4011.1,0.022]
[1758784217945,3.0,4011.9,4011.1,0.022]
[1758784218097,3.175,4011.8,4011.3,2.49291115]
[1758784218303,3.695,4011.7,4011.1,0.022]
[1758784218902,3.0,4011.7,4011.3,2.49293454]
[1758784219103,3.0,4011.6,4011.4,2.49285627]
[1758784219303,3.0,4011.6,4011.1,0.022]
[1758784219533,0.695,4011.5,4011.1,0.022]
[1758784219838,4.56952224,4012.1,4011.1,0.022]
[1758784219839,0.2485,4011.9,4011.1,0.022]
[1758784220037,4.419,4011.6,4011.1,0.022]
[1758784220211,0.695,4011.5,4011.1,0.022]
[1758784220412,37.63804922,4011.4,4011.1,0.022]
[1758784220723,3.0,4011.3,4011.1,0.022]
[1758784220910,3.695,4011.3,4011.1,0.022]
[1758784221101,4.6655,4011.2,4011.1,0.022]
[1758784221299,10.60501954,4011.2,4011.1,0.022]
[1758784221536,3.0,4011.2,4011.1,0.022]
[1758784221735,3.0,4011.2,4011.1,2.51508169]
[1758784222036,37.88654922,4011.9,4011.1,0.022]
[1758784222338,0.4465,4012.2,4011.1,0.022]
[1758784222339,2.078,4012.2,4011.1,0.2562]
[1758784222544,3.0,4012.0,4011.8,2.49259282]
[1758784222746,3.0,4012.0,4011.2,0.78285215]
[1758784222747,3.0,4012.0,4011.7,2.49269227]
[1758784222917,7.418,4011.9,4011.8,2.49263392]
[1758784223246,4.418,4011.9,4011.8,2.49264669]
[1758784223414,0.792,4013.4,4011.8,2.49264669]
[1758784223415,37.88654922,4013.0,4012.3,2.49229389]
[1758784223614,37.88654922,4013.0,4011.8,0.6731]
[1758784223814,6.495,4012.9,4011.9,0.2342]
[1758784224238,6.495,4012.9,4012.1,2.49240306]
[1758784224534,3.0,4012.8,4011.9,0.2342]
[1758784224721,37.63804922,4013.0,4012.2,14.5]
[1758784224927,37.63804922,4013.0,4012.4,2.49223441]
[1758784224928,4.416,4012.7,4012.4,2.49223441]
[1758784225130,3.0,4012.6,4012.4,2.49223441]
[1758784225522,3.0,4012.6,4012.2,14.5]
[1758784225726,4.415,4012.5,4012.4,2.4922247]
[1758784225926,0.2485,4012.9,4012.4,2.4922247]
[1758784226132,4.412,4012.8,4012.2,14.5]
[1758784226326,0.2485,4012.9,4012.2,14.5]
[1758784226727,38.08454922,4013.0,4012.2,14.5]
[1758784226728,0.001,4012.6,4012.2,14.5]
[1758784226947,0.001,4012.6,4012.5,2.49221183]
[1758784227152,4.411,4012.6,4012.5,2.49221183]
[1758784227336,0.001,4012.6,4012.5,2.72641183]
[1758784227540,0.001,4012.6,4012.5,4.45154529]
[1758784228116,0.001,4012.6,4012.5,4.89044529]
[1758784229231,0.001,4012.6,4012.5,5.01444529]
[1758784229430,0.001,4012.6,4012.5,3.28931183]
[1758784229627,0.001,4012.6,4012.5,17.78931183]
[1758784231957,0.001,4012.6,4012.5,22.19131183]
[1758784234059,0.001,4012.6,4012.5,22.98331183]
[1758784234382,0.001,4012.6,4012.5,25.98331183]
[1758784234557,0.001,4012.6,4012.5,28.37459798]
[1758784238173,0.001,4012.6,4012.5,19.50749798]
[1758784238353,0.001,4012.6,4012.5,16.99221183]
[1758784238354,0.4475,4012.6,4012.5,16.99221183]
[1758784238534,0.696,4012.6,4012.5,16.99221183]
[1758784238934,0.2495,4012.6,4012.5,16.99221183]
[1758784239165,0.696,4012.6,4012.5,16.99221183]
[1758784239370,0.696,4012.6,4012.5,14.5]
[1758784240970,0.696,4012.6,4012.0,6.88052083]
[1758784240971,0.4475,4012.6,4012.0,6.88052083]
[1758784241375,0.2369,4012.5,4012.2,2.49239818]
[1758784241671,0.6891,4012.4,4012.0,6.88049771]
[1758784241968,0.001,4012.6,4012.5,2.49221183]
[1758784242141,0.001,4012.6,4012.5,21.40313394]
[1758784242347,0.001,4012.6,4012.5,21.62061183]
[1758784242548,0.001,4012.6,4012.5,22.06061183]
[1758784243272,0.001,4012.6,4012.5,22.85261183]
[1758784243471,0.001,4012.6,4012.5,25.24389798]
[1758784244175,0.001,4012.6,4012.5,25.24589798]
[1758784244531,0.001,4012.6,4012.5,19.38549798]
[1758784244733,0.001,4012.6,4012.5,21.37621183]
[1758784245838,0.001,4012.6,4012.5,16.99421183]
[1758784246040,0.001,4012.6,4012.5,21.37721183]
[1758784246869,0.001,4012.6,4012.5,21.37521183]
[1758784248605,0.001,4012.6,4012.5,21.61761183]
[1758784248900,0.001,4012.6,4012.5,24.13289798]
[1758784249705,0.001,4012.6,4012.5,21.49921183]
[1758784249860,0.2379,4012.6,4012.5,21.37121183]
[1758784250260,0.001,4012.6,4012.5,21.37121183]
[1758784250901,0.2379,4012.6,4012.5,21.37121183]
[1758784251060,0.6893,4012.6,4012.5,14.502]
[1758784251462,0.6893,4012.6,4012.5,0.002]
[1758784252296,0.0002,4012.6,4012.5,2.49421183]
[1758784252903,0.0002,4012.6,4012.5,6.86821183]
[1758784254065,0.0002,4012.6,4012.5,2.49421183]
[1758784254401,0.6893,4012.6,4012.5,0.002]
[1758784255979,6.18144972,4012.6,4012.5,0.002]
[1758784256194,3.6893,4012.6,4012.5,0.002]
[1758784256392,6.18144972,4012.6,4012.5,0.002]
[1758784256901,3.6893,4012.6,4012.5,0.002]
[1758784257106,6.18144972,4012.6,4012.5,0.002]
[1758784257478,6.97344972,4012.6,4012.5,0.002]
[1758784257665,2.4924603,4012.1,4012.0,0.002]
[1758784257868,49.57650952,4012.1,4012.0,0.002]
[1758784258070,50.26560952,4012.1,4012.0,0.002]
[1758784258822,2.49270882,4011.7,4011.6,0.002]
[1758784259400,12.62780882,4011.7,4011.6,0.002]
[1758784259618,3.6891,4011.7,4011.6,0.002]
[1758784259812,10.1341,4011.7,4011.6,0.002]
[1758784259966,12.62680882,4011.7,4011.6,0.002]
[1758784260685,43.13106876,4011.2,4011.1,0.022]
[1758784260883,47.49806876,4011.2,4011.1,0.022]
[1758784261108,48.18716876,4011.2,4011.1,0.022]
[1758784261621,2.49333034,4010.7,4010.4,0.002]
[1758784261824,49.57537956,4010.7,4010.4,0.002]
[1758784261974,50.27547956,4010.7,4010.4,0.002]
[1758784262175,2.49345468,4010.5,4010.4,0.002]
[1758784262685,6.19355468,4010.5,4010.4,0.002]
[1758784264195,6.98555468,4010.5,4010.4,0.002]
[1758784264611,13.42855468,4010.5,4010.4,0.002]
[1758784265498,3.0,4010.5,4010.4,0.002]
[1758784266002,9.443,4010.5,4010.4,0.002]
[1758784266226,12.63655468,4010.5,4010.4,0.002]
[1758784266722,5.49364121,4010.2,4010.1,0.02]
[1758784267033,47.49769043,4010.2,4010.1,0.02]
[1758784267524,43.83179043,4010.2,4010.1,0.02]
[1758784267725,50.27479043,4010.2,4010.1,0.02]
[1758784267888,41.33814922,4010.2,4010.1,0.02]
[1758784268088,48.19579043,4010.2,4010.1,0.02]
[1758784268320,50.27379043,4010.2,4010.1,0.02]
[1758784268836,50.27279043,4010.2,4010.1,0.02]
[1758784269329,0.792,4010.0,4009.1,0.02]
[1758784269516,3.0,4009.2,4009.1,0.02]
[1758784269690,7.364,4009.2,4009.1,0.02]
[1758784270624,7.364,4009.2,4009.1,0.2497]
[1758784270999,7.364,4009.2,4009.1,0.02]
[1758784271941,9.443,4009.2,4009.1,0.02]
[1758784272146,11.93726319,4009.2,4009.1,0.02]
[1758784272326,9.443,4009.2,4009.1,0.02]
[1758784272633,9.85626319,4009.2,4009.1,0.02]
[1758784272839,12.62426319,4009.2,4009.1,0.02]
[1758784273338,12.17236319,4009.2,4009.1,0.02]
[1758784273545,12.62426319,4009.2,4009.1,0.02]
[1758784273710,6.18326319,4009.2,4009.1,0.02]
[1758784274066,12.62226319,4009.2,4009.1,0.02]
[1758784274206,12.17036319,4009.2,4009.1,0.02]
[1758784275104,11.93326319,4009.2,4009.1,0.02]
[1758784275340,11.93226319,4009.2,4009.1,0.02]
[1758784275725,12.16936319,4009.2,4009.1,0.02]
[1758784275927,12.62126319,4009.2,4009.1,0.02]
[1758784276540,12.62046319,4009.2,4009.1,0.02]
[1758784276816,0.792,4009.1,4008.1,0.02]
[1758784277015,2.49488548,4008.2,4008.1,0.02]
[1758784277216,8.92988548,4008.2,4008.1,0.02]
[1758784277429,9.61888548,4008.2,4008.1,0.02]
[1758784278672,12.61888548,4008.2,4008.1,0.02]
[1758784279169,9.435,4008.2,4008.1,0.02]
[1758784279336,3.0,4008.2,4008.1,0.2467]
[1758784279537,4.354,4008.2,4008.1,0.6939]
[1758784280067,4.354,4008.2,4008.1,15.1939]
[1758784280273,3.0,4008.7,4008.1,15.1939]
[1758784280447,3.0,4008.5,4008.1,15.1939]
[1758784280766,5.079,4008.7,4008.1,15.1939]
[1758784280767,3.0,4008.3,4008.1,15.1939]
[1758784280972,7.354,4008.2,4008.1,14.52]
[1758784281177,0.4519,4010.2,4008.1,16.66871175]
[1758784281374,6.6701,4010.1,4008.8,2.49446876]
[1758784281536,2.49383547,4009.9,4008.9,0.2267]
[1758784281741,3.0,4009.7,4008.9,0.2267]
[1758784281942,3.0,4009.5,4008.9,0.2267]
[1758784282137,3.0,4009.3,4008.9,2.7211418]
[1758784282352,3.0,4009.1,4008.9,2.7211418]
[1758784282568,2.079,4010.1,4009.1,2.4943254]
[1758784282840,4.356,4010.0,4009.9,2.49381446]
[1758784283081,3.0,4009.9,4009.8,2.49388694]
[1758784283241,3.0,4009.9,4009.7,16.99393716]
[1758784283585,7.356,4009.8,4009.7,14.9472]
[1758784283751,30.18188775,4010.4,4009.7,16.99395216]
[1758784283941,6.433,4010.3,4010.0,2.49373863]
[1758784284133,6.433,4010.3,4009.7,14.5]
[1758784284337,6.433,4010.2,4009.7,14.5]
[1758784284573,3.0,4010.1,4009.8,2.72057799]
[1758784284773,0.75021475,4011.5,4009.9,0.69883827]
[1758784284974,4.354,4010.8,4010.5,2.49344326]
[1758784285138,4.354,4010.8,4010.5,2.49342536]
[1758784285353,30.20188775,4011.9,4010.8,2.49326817]
[1758784285552,4.374,4010.9,4010.8,2.49326817]
[1758784285892,0.02,4010.9,4010.8,3.65581927]
[1758784286098,0.02,4010.9,4010.8,3.68075195]
[1758784286271,0.02,4010.9,4010.8,18.18075195]
[1758784286465,0.02,4010.9,4010.8,18.15581927]
[1758784286869,1e-08,4010.9,4010.8,19.07181927]
[1758784287512,1e-08,4010.9,4010.8,25.50481927]
[1758784287796,1e-08,4010.9,4010.8,19.07181927]
[1758784287992,1e-08,4010.9,4010.8,23.42581927]
[1758784290411,1e-08,4010.9,4010.8,23.42481927]
[1758784291022,1e-08,4010.9,4010.8,17.92911927]
[1758784291179,1e-08,4010.9,4010.8,16.99326817]
[1758784291505,0.23710001,4010.9,4010.8,14.5]
[1758784291716,1e-08,4010.9,4010.8,14.5]
[1758784292159,1e-08,4010.9,4010.8,16.99326817]
[1758784293502,0.23710001,4010.9,4010.8,14.5]
[1758784293796,3.68900001,4010.9,4010.8,14.5]
[1758784294015,5.04200001,4010.9,4010.8,14.5]
[1758784294315,4.59010001,4010.9,4010.8,14.5]
[1758784294514,0.23710001,4010.9,4010.8,14.5]
[1758784294671,7.35300001,4010.9,4010.8,14.5]
[1758784294871,7.35300001,4010.9,4010.8,16.99326817]
[1758784295097,1e-08,4010.9,4010.8,17.21996817]
[1758784295279,1e-08,4010.9,4010.8,17.66716817]
[1758784295616,1e-08,4010.9,4010.8,16.99326817]
[1758784296162,1e-08,4010.9,4010.8,14.5]
[1758784296462,1e-08,4010.9,4010.8,16.99326817]
[1758784296865,1e-08,4010.9,4010.8,14.5]
[1758784297314,0.00100001,4010.9,4010.8,14.5]
[1758784297819,0.00100001,4010.9,4010.8,16.99326817]
[1758784298320,0.00100001,4010.9,4010.8,14.5]
[1758784298814,0.00100001,4010.9,4010.8,16.99326817]
[1758784298978,0.00100001,4010.9,4010.8,14.5]
[1758784299973,0.001,4011.4,4010.8,21.8919]
[1758784300288,0.001,4011.4,4011.3,3.28495739]
[1758784300544,0.001,4011.4,4011.3,7.78395739]
[1758784300769,0.001,4011.4,4011.3,22.95575739]
[1758784300973,1e-08,4011.9,4011.8,2.49264669]
[1758784301459,1e-08,4011.9,4011.8,6.86664669]
[1758784301762,1e-08,4011.9,4011.8,21.60014669]
[1758784301945,0.02,4012.9,4011.8,19.1075]
[1758784302147,4.394,4012.9,4012.7,2.49204386]
[1758784302349,4.394,4012.9,4012.7,2.49207538]
[1758784302535,0.2311,4012.8,4012.1,0.0249246]
[1758784302742,0.2311,4012.8,4012.7,2.49207614]
[1758784303137,0.02,4012.9,4012.8,2.49202551]
[1758784303531,0.02,4012.9,4012.5,4.37]
[1758784303730,0.2311,4012.8,4012.2,16.99233663]
[1758784303926,0.2311,4012.8,4012.2,14.5]
[1758784304241,0.02,4012.9,4012.7,2.49203966]
[1758784304964,0.02,4012.9,4012.8,2.49202551]
[1758784305174,0.02,4012.9,4012.2,14.5]
[1758784305476,4.391,4012.9,4012.8,2.49202551]
[1758784305673,0.7235,4012.9,4012.3,2.49228409]
[1758784305968,0.2311,4012.8,4012.2,14.5]
[1758784306140,0.7035,4012.7,4012.2,14.5]
[1758784306468,0.7035,4012.6,4012.2,14.5]
[1758784306639,5.0725,4012.5,4012.2,14.5]
[1758784306857,0.2311,4012.4,4012.2,14.5]
[1758784307178,4.8414,4012.5,4012.2,14.5]
[1758784307379,4.367,4012.5,4012.2,16.99233911]
[1758784307562,4.367,4012.5,4012.2,14.5]
[1758784307898,3.7035,4012.4,4012.2,16.99233811]
[1758784308063,0.7035,4012.4,4012.2,16.99233811]
[1758784308255,3.0,4012.7,4012.2,14.5]
[1758784308472,3.0,4012.7,4012.6,2.49214972]
[1758784308770,0.7035,4012.6,4012.2,16.99235249]
[1758784309271,0.02,4012.9,4012.2,16.99235249]
[1758784309272,0.02,4012.9,4012.5,2.49217322]
[1758784309475,4.366,4012.8,4012.4,2.4922524]
[1758784309768,3.0,4012.7,4012.4,2.4922175]
[1758784309979,3.0,4012.7,4012.2,16.992394]
[1758784310281,3.0,4012.5,4012.4,2.49222298]
[1758784310582,2.098,4012.9,4012.6,2.49211167]
[1758784310583,0.02,4012.9,4012.6,2.49211167]
[1758784310749,0.2311,4012.8,4012.2,14.5]
[1758784310941,0.2311,4012.8,4012.3,2.49232616]
[1758784310942,0.7035,4012.8,4012.3,2.49232616]
[1758784311143,0.7035,4012.7,4012.2,14.5]
[1758784311343,3.0,4012.5,4012.2,16.99235022]
[1758784311688,0.7035,4012.4,4012.2,14.5]
[1758784311999,0.7035,4012.3,4012.2,14.5]
[1758784312204,0.7035,4012.3,4011.1,0.2335]
[1758784312205,3.0,4012.2,4011.7,2.49265784]
[1758784312401,0.2311,4012.1,4011.7,2.49265784]
[1758784312705,0.2311,4012.1,4011.8,16.99263964]
[1758784312999,0.2311,4012.1,4011.8,16.99264632]
[1758784313307,4.361,4012.3,4012.2,2.49239427]
[1758784313599,3.0,4012.2,4011.9,0.2335]
[1758784313813,3.0,4012.3,4011.8,14.5]
[1758784313814,3.0,4012.4,4011.8,14.5]
[1758784313960,3.0,4012.4,4012.2,2.49239463]
[1758784314160,3.0,4012.4,4012.1,2.49244572]
[1758784314361,3.0,4012.4,4012.2,2.49234382]
[1758784314570,3.0,4012.4,4011.8,14.5]